{"text_format":"3","workbook":"xlsx","n_sheets":2,"sheets":["A MUNKAFÜZET HASZNÁLATA","OSZTÁLYNAPLÓ"],"not_rendered":{"defined_names":7},"read":"whole","date_system":"1900"}

{"sheet":"A MUNKAFÜZET HASZNÁLATA","index":0,"n_rows":10,"n_cols":2,"rows_kept":10}
[null,"ÚTMUTATÁS"]
[null,"Az OSZTÁLYNAPLÓ munkalapon kiszámíthatja az osztályzatokat, az egyes feladatokon elért pontszám alapján. "]
[null,"Útmutatás: Mindenképpen készítsen biztonsági másolatot az osztályzatokról."]
[null,"1. Adja meg az iskola nevét, az osztály adatait, a diákok nevét és a diákok azonosítóját (nem kötelező).   "]
[null,"2. Végezze el az osztályzat és a tanulmányi átlag táblázatában az Ön által használt pontozórendszernek megfelelő módosításokat."]
[null,"3. Adja meg a feladat, a dolgozat vagy a teszt nevét (például „1. dolgozat”) a H8 cellával kezdődően, valamint az egyes feladatok pontszámát. "]
[null,"4. Adja meg az egyes tanulók által a feladatokkal vagy dolgozatokon elért pontszámot. A sablon automatikusan kiszámítja az „Átlag”, a „Pontszám”, az „Osztályzat” és a „Tanulmányi átlag” oszlop értékét, amelyet szükség esetén felülbírálhat. Ha valamiért extra pontokat szeretne adni, egyszerűen adjon több pontot egy feladatra az adott feladatnál szereplő összes elérhető pontszámnál."]
[null,"A Lapelrendezés menü „Nyomtatási terület” parancsával megváltoztathatja a kinyomtatandó tartalmat."]
[null,"Az osztályzatokhoz tartozó pontszámok egy normál százalékos skálán alapulnak, a 8. és a 9. sorban megadott összpontszámnak megfelelően. Módosítsa az egyes feladatok vagy dolgozatok pontszámát a kívánt értékre, majd adja meg a százalék értékét a megfelelő osztályzat szerint. A Pontszám oszlop celláit felülírva manuális módosításokat végezhet."]
[null,"A H8–X9 cellákban adja meg az egyes feladatokat, teszteket vagy dolgozatokat, valamint az értük járó pontszámot."]

{"sheet":"OSZTÁLYNAPLÓ","index":1,"n_rows":24,"n_cols":24,"rows_kept":24,"merged":[[1,1,2,6],[3,1,3,6],[4,1,6,6],[7,4,7,6],[8,4,8,6],[10,4,10,6],[11,4,11,6],[19,1,19,6],[20,1,20,2],[20,3,20,4],[21,1,21,2],[21,3,21,4],[22,1,22,2],[22,3,22,4],[23,1,23,2],[23,3,23,4]]}
[null,"AZ ISKOLA NEVE"]
[null,"Tanár neve"]
[{"$nulls":7},"Pontszám",{"$f":"I4*ÖsszesPont","v":118},120,126,134,140,{"v":145.6666666666666,"d":"146"},154,160,166,174,180,186,194]
[null,"Osztály/projekt",{"$nulls":5},"%",{"v":0.59,"d":"59%"},{"v":0.6,"d":"60%"},{"v":0.63,"d":"63%"},{"v":0.67,"d":"67%"},{"v":0.7,"d":"70%"},{"v":0.728333333333333,"d":"73%"},{"v":0.77,"d":"77%"},{"v":0.8,"d":"80%"},{"v":0.83,"d":"83%"},{"v":0.87,"d":"87%"},{"v":0.9,"d":"90%"},{"v":0.93,"d":"93%"},{"v":0.97,"d":"97%"}]
[null,"Év/félév/negyedév",{"$nulls":5},"Osztályzat","1","2-","2","2+","3-","3","3+","4-","4","4+","5-","5","5+"]
[{"$nulls":7},"Tanulmányi átlag",0,0.67,1,1.33,1.67,2,2.33,2.67,3,3.33,3.67,4,4]
[]
[{"$nulls":4},"Feladat vagy dolgozat neve",null,null,"TD1","TD2","1. n.é."]
[{"$nulls":4},"Elérhető pontszám összesen",null,null,50,50,100]
[]
[{"$nulls":4},"Feladatok és dolgozatok száma összesen:",null,null,{"$f":"COUNTA(H8:X8)","v":3}]
[{"$nulls":4},"Elérhető pontszám összesen:",null,null,{"$f":"SUM(H9:X9)","v":200}]
[]
[null,"Tanuló neve","Tanuló azonosítója","Átlag","Pontszám","Osztályzat","Tanulmányi átlag","Oszlop6","Oszlop7","Oszlop8","Oszlop9","Oszlop10","Oszlop11","Oszlop12","Oszlop13","Oszlop14","Oszlop15","Oszlop16","Oszlop17","Oszlop18","Oszlop19","Oszlop20","Oszlop21","Oszlop22"]
[null,"1. tanuló száma",null,{"$f":"IFERROR(IF(COUNT(Osztályzatok[[#This Row],[Oszlop6]:[Oszlop22]])=0,\"\",SUM(Osztályzatok[[#This Row],[Oszlop6]:[Oszlop22]])/ÖsszesPont),\"\")","v":{"v":0.91,"d":"91.0%"}},{"$f":"IF(COUNT(Osztályzatok[[#This Row],[Oszlop6]:[Oszlop22]])=0,\"\",SUM(Osztályzatok[[#This Row],[Oszlop6]:[Oszlop22]]))","v":182},{"$f":"IFERROR(IF(Osztályzatok[[#This Row],[Átlag]]<>\"\",HLOOKUP(Osztályzatok[[#This Row],[Átlag]]*ÖsszesPont,OsztályzatTáblázat,3),\"\"),0)","v":"5-"},{"$f":"IFERROR(IF(Osztályzatok[[#This Row],[Átlag]]<>\"\",HLOOKUP(Osztályzatok[[#This Row],[Átlag]]*ÖsszesPont,OsztályzatTáblázat,4),\"\"),0)","v":3.67},45,45,92]
[null,"2. tanuló száma",null,{"$f":"IFERROR(IF(COUNT(Osztályzatok[[#This Row],[Oszlop6]:[Oszlop22]])=0,\"\",SUM(Osztályzatok[[#This Row],[Oszlop6]:[Oszlop22]])/ÖsszesPont),\"\")","v":{"v":1,"d":"100.0%"}},{"$f":"IF(COUNT(Osztályzatok[[#This Row],[Oszlop6]:[Oszlop22]])=0,\"\",SUM(Osztályzatok[[#This Row],[Oszlop6]:[Oszlop22]]))","v":200},{"$f":"IFERROR(IF(Osztályzatok[[#This Row],[Átlag]]<>\"\",HLOOKUP(Osztályzatok[[#This Row],[Átlag]]*ÖsszesPont,OsztályzatTáblázat,3),\"\"),0)","v":"5+"},{"$f":"IFERROR(IF(Osztályzatok[[#This Row],[Átlag]]<>\"\",HLOOKUP(Osztályzatok[[#This Row],[Átlag]]*ÖsszesPont,OsztályzatTáblázat,4),\"\"),0)","v":{"v":4,"d":"4.00"}},50,50,100]
[{"$nulls":3},{"$f":"IFERROR(IF(COUNT(Osztályzatok[[#This Row],[Oszlop6]:[Oszlop22]])=0,\"\",SUM(Osztályzatok[[#This Row],[Oszlop6]:[Oszlop22]])/ÖsszesPont),\"\")","v":""},{"$f":"IF(COUNT(Osztályzatok[[#This Row],[Oszlop6]:[Oszlop22]])=0,\"\",SUM(Osztályzatok[[#This Row],[Oszlop6]:[Oszlop22]]))","v":""},{"$f":"IFERROR(IF(Osztályzatok[[#This Row],[Átlag]]<>\"\",HLOOKUP(Osztályzatok[[#This Row],[Átlag]]*ÖsszesPont,OsztályzatTáblázat,3),\"\"),0)","v":""},{"$f":"IFERROR(IF(Osztályzatok[[#This Row],[Átlag]]<>\"\",HLOOKUP(Osztályzatok[[#This Row],[Átlag]]*ÖsszesPont,OsztályzatTáblázat,4),\"\"),0)","v":""}]
[{"$nulls":3},{"$f":"IFERROR(IF(COUNT(Osztályzatok[[#This Row],[Oszlop6]:[Oszlop22]])=0,\"\",SUM(Osztályzatok[[#This Row],[Oszlop6]:[Oszlop22]])/ÖsszesPont),\"\")","v":""},{"$f":"IF(COUNT(Osztályzatok[[#This Row],[Oszlop6]:[Oszlop22]])=0,\"\",SUM(Osztályzatok[[#This Row],[Oszlop6]:[Oszlop22]]))","v":""},{"$f":"IFERROR(IF(Osztályzatok[[#This Row],[Átlag]]<>\"\",HLOOKUP(Osztályzatok[[#This Row],[Átlag]]*ÖsszesPont,OsztályzatTáblázat,3),\"\"),0)","v":""},{"$f":"IFERROR(IF(Osztályzatok[[#This Row],[Átlag]]<>\"\",HLOOKUP(Osztályzatok[[#This Row],[Átlag]]*ÖsszesPont,OsztályzatTáblázat,4),\"\"),0)","v":""}]
[{"$nulls":3},{"$f":"IFERROR(IF(COUNT(Osztályzatok[[#This Row],[Oszlop6]:[Oszlop22]])=0,\"\",SUM(Osztályzatok[[#This Row],[Oszlop6]:[Oszlop22]])/ÖsszesPont),\"\")","v":""},{"$f":"IF(COUNT(Osztályzatok[[#This Row],[Oszlop6]:[Oszlop22]])=0,\"\",SUM(Osztályzatok[[#This Row],[Oszlop6]:[Oszlop22]]))","v":""},{"$f":"IFERROR(IF(Osztályzatok[[#This Row],[Átlag]]<>\"\",HLOOKUP(Osztályzatok[[#This Row],[Átlag]]*ÖsszesPont,OsztályzatTáblázat,3),\"\"),0)","v":""},{"$f":"IFERROR(IF(Osztályzatok[[#This Row],[Átlag]]<>\"\",HLOOKUP(Osztályzatok[[#This Row],[Átlag]]*ÖsszesPont,OsztályzatTáblázat,4),\"\"),0)","v":""}]
[]
[null,"Osztály összesítése",null,"Átlag",null,"Osztályzat","Tanulmányi átlag","","","","","","","","","","",""]
[null," Átlag",null,{"$f":"IFERROR(AVERAGE(Osztályzatok[[#All],[Átlag]]),0)","v":{"v":0.9550000000000001,"d":"95.5%"}},null,{"$f":"IFERROR(HLOOKUP(D22*ÖsszesPont,OsztályzatTáblázat,3),\"\")","v":"5"},{"$f":"IFERROR(AVERAGE(Osztályzatok[[#All],[Tanulmányi átlag]]),0)","v":{"v":3.835,"d":"3.84"}},"","","","","","","","","","","","","","","","",""]
[null," Legmagasabb pontszám",null,{"$f":"IFERROR(MAX(Osztályzatok[[#All],[Átlag]]),0)","v":{"v":1,"d":"100.0%"}},null,{"$f":"IFERROR(HLOOKUP(D23*ÖsszesPont,OsztályzatTáblázat,3),\"\")","v":"5+"},{"$f":"IFERROR(MAX(Osztályzatok[[#All],[Tanulmányi átlag]]),0)","v":{"v":4,"d":"4.00"}},"","","","","","","","","","","","","","","","",""]
[null," Legalacsonyabb pontszám",null,{"$f":"IFERROR(MIN(Osztályzatok[[#All],[Átlag]]),0)","v":{"v":0.91,"d":"91.0%"}},null,{"$f":"IFERROR(HLOOKUP(D24*ÖsszesPont,OsztályzatTáblázat,3),\"\")","v":"5-"},{"$f":"IFERROR(MIN(Osztályzatok[[#All],[Tanulmányi átlag]]),0)","v":3.67},"","","","","","","","","","","","","","","","",""]